bitfinex/quotes_ETHUSD_20240711
["timestamp","ask_amount","ask_price","bid_price","bid_amount"]
[1720691272007,1.65498151,3141.2,3139.0,0.24504]
[1720691272186,2.26453552,3141.3,3139.1,2.3474]
[1720691273260,1.65498151,3141.2,3139.1,2.3474]
[1720691273901,2.26453552,3141.3,3139.1,2.3474]
[1720691274108,1.65725285,3141.2,3139.2,0.259244]
[1720691274601,1.65725285,3141.1,3139.2,0.259244]
[1720691274800,1.65725285,3141.0,3139.2,0.259244]
[1720691275011,0.16572529,3140.9,3139.3,0.2606644]
[1720691276115,1.65725285,3141.0,3139.1,2.3474]
[1720691276286,3.0,3141.1,3139.1,2.3474]
[1720691276287,1.65725285,3140.8,3139.1,2.3474]
[1720691276670,1.65725285,3140.7,3139.1,2.3474]
[1720691277072,1.65725285,3140.8,3139.1,2.3474]
[1720691277311,1.65725285,3140.7,3139.1,2.3474]
[1720691277538,0.16572529,3140.6,3139.1,2.3474]
[1720691279026,1.65741633,3140.9,3139.1,2.3474]
[1720691279613,1.65741633,3140.8,3139.1,2.3474]
[1720691280514,3.41484291,3141.2,3139.1,2.3474]
[1720691280719,1.65683515,3140.7,3139.1,2.3474]
[1720691281092,3.0,3140.4,3138.7,0.2]
[1720691281412,1.65683515,3139.8,3138.7,0.2]
[1720691281594,0.3193,3140.2,3138.7,0.2]
[1720691281595,1.65683515,3139.7,3138.7,0.2]
[1720691281930,5.30556921,3140.3,3138.7,0.2]
[1720691281931,1.65683515,3139.8,3138.7,0.2]
[1720691282230,1.65683515,3140.0,3138.7,0.2]
[1720691282433,0.33314417,3139.7,3138.7,0.2]
[1720691283028,0.33314417,3139.7,3138.8,2.39]
[1720691283235,0.33314417,3139.7,3138.9,0.259]
[1720691284038,0.33314417,3139.7,3139.0,2.2979]
[1720691285953,0.33314417,3139.7,3139.1,0.0637062]
[1720691286112,0.33314417,3139.7,3139.0,2.2879]
[1720691286447,0.33314417,3139.7,3139.1,2.2879]
[1720691286671,0.33314417,3139.7,3139.2,0.22879]
[1720691288633,1.65653141,3140.7,3139.2,0.22879]
[1720691288830,1.65653141,3140.7,3139.1,2.2879]
[1720691288831,0.33308127,3140.3,3139.1,2.2879]
[1720691296261,1.99216443,3140.3,3139.1,2.2879]
[1720691296557,1.99326686,3140.3,3139.1,2.2879]
[1720691297247,1.66018559,3140.2,3139.1,2.2879]
[1720691297426,1.85951228,3140.2,3139.1,2.2879]
[1720691297757,0.19932669,3140.2,3139.1,2.2879]
[1720691298270,1.85951228,3140.2,3139.1,2.2879]
[1720691298567,1.66018559,3140.1,3139.1,2.2879]
[1720691299136,1.85951228,3140.2,3139.1,2.2879]
[1720691299325,1.85951228,3140.2,3139.1,2.51669]
[1720691299520,1.66018559,3140.1,3139.1,2.51669]
[1720691299754,0.19932669,3140.2,3139.1,2.51669]
[1720691299952,1.66379878,3140.2,3139.1,2.51669]
[1720691300369,1.66379878,3140.1,3139.1,2.51669]
[1720691300575,1.66379878,3140.0,3139.1,2.51669]
[1720691300777,1.6647331,3140.1,3139.1,2.51669]
[1720691301361,0.33308127,3140.3,3139.1,2.51669]
[1720691301362,1.6647331,3140.0,3139.1,2.51669]
[1720691301564,1.6647331,3139.6,3139.1,2.2879]
[1720691301831,1.6647331,3139.2,3138.3,2.4575]
[1720691302034,1.6647331,3138.9,3138.3,2.4575]
[1720691302341,1.6647331,3138.7,3138.3,2.4575]
[1720691302545,1.6647331,3138.5,3138.3,2.4575]
[1720691302740,1.99767972,3138.8,3137.4,6.9375]
[1720691302741,1.99767972,3138.6,3137.5,2.3128]
[1720691302947,1.66788741,3138.1,3137.5,2.3128]
[1720691303185,1.66788741,3138.3,3137.5,2.3128]
[1720691303482,1.66901416,3138.4,3137.6,0.06373795]
[1720691303636,10.20013217,3139.3,3137.5,2.54408]
[1720691303637,1.66901416,3138.5,3137.5,2.54408]
[1720691303832,2.33661983,3139.1,3137.5,2.54408]
[1720691303833,1.66901416,3138.6,3137.6,0.06372536]
[1720691304066,2.00281699,3138.9,3137.7,2.4914]
[1720691304067,1.66901416,3138.9,3137.7,2.4914]
[1720691304232,1.66901416,3138.8,3137.7,2.4914]
[1720691304433,1.66901416,3138.9,3137.9,2.4943]
[1720691304647,1.66901416,3139.2,3138.2,2.4943]
[1720691304937,1.66901416,3139.4,3138.2,2.55800821]
[1720691305135,1.66901416,3139.3,3138.2,2.4943]
[1720691305333,3.71882489,3140.5,3138.2,2.4943]
[1720691305334,1.66901416,3139.1,3138.2,2.4943]
[1720691305568,1.66901416,3139.2,3138.3,0.51193]
[1720691305767,1.66901416,3139.0,3138.3,0.51193]
[1720691306055,1.66901416,3139.0,3138.2,2.4943]
[1720691306446,1.66901416,3138.9,3138.2,2.4943]
[1720691306639,1.66901416,3139.0,3138.2,2.4943]
[1720691306856,1.66901416,3138.9,3138.2,2.4943]
[1720691307075,1.66901416,3139.0,3138.2,2.4943]
[1720691307367,1.66901416,3139.0,3138.3,0.24943]
[1720691308330,1.66901416,3139.2,3138.4,2.2893]
[1720691308537,1.66901416,3139.3,3138.4,2.2893]
[1720691308776,1.66901416,3139.3,3138.5,0.253873]
[1720691309149,1.66901416,3139.1,3138.5,0.253873]
[1720691309351,3.30332504,3140.3,3138.5,0.253873]
[1720691309352,1.66901416,3139.0,3138.5,0.253873]
[1720691309859,1.67104334,3139.0,3138.5,0.253873]
[1720691310758,1.67104334,3139.1,3138.5,0.253873]
[1720691310964,1.67104334,3139.1,3138.6,0.2543173]
[1720691312063,1.67104334,3139.2,3138.6,0.2543173]
[1720691313084,0.78554999,3140.3,3138.6,0.2543173]
[1720691313241,1.67085005,3139.2,3138.6,0.2543173]
[1720691313585,1.67085216,3139.2,3138.6,0.2543173]
[1720691313753,1.67085216,3139.1,3138.6,0.2543173]
[1720691314075,0.33311392,3140.2,3138.7,2.3868]
[1720691314076,1.67085216,3139.2,3138.7,2.3868]
[1720691314263,1.67085216,3139.3,3138.8,0.26411173]
[1720691314668,2.00502259,3139.5,3138.8,0.26411173]
[1720691314669,1.67085216,3139.2,3138.8,0.26411173]
[1720691315392,1.67085216,3139.0,3138.8,0.26411173]
[1720691315680,0.33311392,3140.2,3138.8,0.26411173]
[1720691315681,1.67085216,3138.9,3138.8,0.26411173]
[1720691316045,1.67085216,3139.0,3138.8,0.26411173]
[1720691316456,3.63643896,3140.2,3138.8,0.26411173]
[1720691316654,1.67095732,3139.1,3138.8,0.26411173]
[1720691318176,1.67095732,3139.0,3138.8,0.26411173]
[1720691318734,1.67095732,3139.1,3138.8,0.26411173]
[1720691319178,1.67095732,3139.1,3138.4,2.36]
[1720691319388,1.67095732,3138.6,3138.4,2.36]
[1720691321358,1.67095732,3138.7,3138.4,2.36]
[1720691322515,1.67095732,3138.8,3138.5,0.06371738]
[1720691322788,2.33934026,3139.3,3138.4,2.36]
[1720691322789,1.67095732,3139.0,3138.4,2.36]
[1720691322947,1.67095732,3139.0,3138.5,0.236]
[1720691323150,3.63643896,3140.2,3138.5,0.236]
[1720691323460,1.67085524,3139.0,3138.5,0.236]
[1720691323846,2.33919734,3139.6,3138.5,0.236]
[1720691323847,1.67085524,3139.1,3138.5,0.236]
[1720691324480,1.67085524,3139.2,3138.5,2.861]
[1720691324703,1.67085524,3139.3,3138.6,0.5221]
[1720691326796,1.67066043,3139.3,3138.6,0.5221]
[1720691327172,1.67066043,3139.1,3138.6,0.5221]
[1720691327382,1.67066043,3139.0,3138.6,0.5221]
[1720691327886,1.67066043,3138.9,3138.5,0.236]
[1720691328297,1.67066043,3139.0,3138.5,0.236]
[1720691328458,1.67066043,3138.9,3138.5,0.236]
[1720691328658,1.67066043,3138.8,3138.5,0.236]
[1720691329671,1.67066043,3138.9,3138.5,0.236]
[1720691329873,1.67066043,3138.9,3138.6,0.2596]
[1720691330073,1.67171904,3138.9,3138.6,0.2596]
[1720691330278,1.67171904,3139.0,3138.6,0.2596]
[1720691330474,1.67171904,3139.0,3138.4,2.36]
[1720691333402,1.67162097,3139.0,3138.4,2.36]
[1720691334765,1.67162097,3138.9,3138.4,2.36]
[1720691335272,1.67162097,3139.0,3138.4,2.36]
[1720691336307,1.67162097,3138.9,3138.4,2.36]
[1720691336508,1.67162097,3139.0,3138.5,0.236]
[1720691336665,3.30332504,3140.1,3138.4,2.36]
[1720691336876,12.47,3140.8,3138.1,2.625]
[1720691336877,1.67191329,3138.7,3138.1,2.625]
[1720691337180,1.67191329,3138.5,3137.9,2.2667]
[1720691337408,1.67191329,3138.2,3137.9,2.2667]
[1720691337619,3.30332504,3139.4,3137.9,2.2667]
[1720691337620,1.67191329,3138.3,3137.9,2.2667]
[1720691337931,1.67191329,3138.2,3138.0,0.22667]
[1720691338434,1.67191329,3138.3,3138.0,0.22667]
[1720691339155,1.67188213,3138.3,3138.0,0.22667]
[1720691341348,1.67188213,3138.4,3138.0,0.22667]
[1720691341637,1.67188213,3138.3,3138.0,0.22667]
[1720691342638,3.30332504,3139.5,3138.0,0.22667]
[1720691342817,1.67162768,3138.3,3138.1,0.249337]
[1720691343001,1.67162768,3138.5,3138.1,0.249337]
[1720691344141,1.67162768,3138.4,3138.1,0.249337]
[1720691344535,1.67162768,3138.5,3138.2,1.97]
[1720691344850,1.67162768,3138.8,3138.3,0.06371828]
[1720691345000,1.67162768,3138.9,3138.4,0.20337183]
[1720691345210,1.67162768,3138.9,3138.6,1.97]
[1720691345411,1.67162768,3139.1,3138.6,1.97]
[1720691346122,1.67107742,3139.1,3138.6,1.97]
[1720691346325,1.67107742,3139.1,3138.7,0.197]
[1720691346526,1.67107742,3139.2,3138.7,0.197]
[1720691346741,1.67107742,3139.1,3138.7,0.197]
[1720691346925,1.67107742,3139.0,3138.7,0.197]
[1720691347130,1.67107742,3139.1,3138.7,0.197]
[1720691347336,1.67107742,3138.9,3138.3,0.2]
[1720691347715,1.67107742,3138.7,3138.3,0.2]
[1720691349045,1.67107742,3138.7,3138.3,0.2637154]
[1720691349223,3.30332504,3140.0,3138.3,0.2]
[1720691349419,1.67157593,3138.9,3138.3,0.26370641]
[1720691349625,1.67157593,3138.8,3138.4,0.22337064]
[1720691350150,1.67157593,3138.9,3138.4,0.22337064]
[1720691350553,1.67157593,3138.8,3138.4,0.22337064]
[1720691351058,3.30332504,3140.0,3138.4,0.22337064]
[1720691351059,1.67157593,3138.7,3138.4,0.22337064]
[1720691351353,1.67157593,3138.7,3138.3,0.4]
[1720691351939,1.67157593,3138.8,3138.3,0.4]
[1720691352778,1.67272829,3138.9,3138.3,0.4]
[1720691353057,3.30332504,3140.0,3138.3,0.4]
[1720691353058,1.67272829,3139.0,3138.6,1.97]
[1720691353367,1.67272829,3139.1,3138.6,1.97]
[1720691353929,1.67272829,3139.2,3138.6,1.97]
[1720691354133,1.67272829,3139.2,3138.7,2.4863]
[1720691354529,1.67272829,3139.2,3139.0,1.97]
[1720691354728,1.67272829,3139.2,3139.1,0.197]
[1720691355748,1.67272829,3139.3,3139.1,0.197]
[1720691355946,1.67272829,3139.2,3139.1,0.197]
[1720691356149,1.67227983,3139.2,3139.1,0.197]
[1720691356349,3.30332504,3140.4,3139.1,0.197]
[1720691356563,2.00659485,3139.4,3138.7,2.4863]
[1720691356746,1.67233103,3139.0,3138.7,2.4863]
[1720691358276,1.67233103,3138.9,3138.6,1.97]
[1720691358449,1.67233103,3139.0,3138.6,1.97]
[1720691358632,1.67238959,3139.0,3138.7,0.197]
[1720691359437,3.30332504,3140.2,3138.7,0.197]
[1720691359438,1.67243049,3138.9,3138.7,0.197]
[1720691361080,1.67243049,3138.9,3138.6,1.97]
[1720691361081,1.67244591,3138.9,3138.6,1.97]
[1720691361244,2.00693509,3138.9,3138.3,0.6]
[1720691361446,1.67261566,3138.6,3138.3,0.6]
[1720691362181,1.67261566,3138.7,3138.3,0.6]
[1720691362385,1.67261566,3138.7,3138.4,0.49542]
[1720691362944,2.00707734,3139.0,3138.4,0.49542]
[1720691363175,1.67256445,3138.6,3138.4,0.49542]
[1720691364974,1.67256445,3138.7,3138.4,0.49542]
[1720691366272,2.34159023,3139.2,3138.4,0.49542]
[1720691366479,1.67265174,3138.6,3138.4,0.49542]
[1720691366818,1.67265174,3138.7,3138.4,0.49542]
[1720691367776,1.67265174,3138.8,3138.4,0.49542]
[1720691368812,1.67265174,3138.7,3138.4,0.49542]
[1720691369042,5.03374781,3139.6,3138.4,0.49542]
[1720691369043,1.67265174,3138.8,3138.4,0.49542]
[1720691369543,1.67265174,3138.8,3138.6,1.97]
[1720691369746,2.00718209,3139.1,3138.7,0.197]
[1720691369747,1.67249612,3139.1,3138.7,0.197]
[1720691369949,1.67249612,3139.2,3138.7,0.197]
[1720691370155,1.67249612,3139.3,3139.0,1.97]
[1720691370325,1.67249612,3139.4,3139.1,0.197]
[1720691370512,1.67249612,3139.5,3139.1,0.197]
[1720691371028,1.67249612,3139.5,3139.4,1.97]
[1720691371209,1.67249612,3139.9,3139.4,2.03369465]
[1720691371413,1.67249612,3140.4,3139.8,1.97]
[1720691371649,3.30332504,3141.6,3139.4,0.06369465]
[1720691371650,1.67249612,3140.6,3140.3,1.97]
[1720691371962,1.67249612,3140.5,3140.3,1.97]
[1720691372312,1.67249612,3140.6,3140.3,1.97]
[1720691372927,1.66953622,3140.6,3140.3,1.97]
[1720691373216,1.66953622,3140.7,3140.3,1.97]
[1720691373756,2.00344347,3140.7,3139.9,1.97]
[1720691373913,1.66877953,3140.3,3139.9,1.97]
[1720691374109,3.30332504,3141.5,3139.5,2.4778]
[1720691374110,1.66877953,3140.2,3139.5,4.4478]
[1720691374364,1.66877953,3140.1,3139.5,4.4478]
[1720691374653,1.66877953,3140.1,3139.5,4.89258]
[1720691375144,1.66877953,3140.1,3139.5,2.41478]
[1720691375360,1.66877953,3140.0,3139.5,1.97]
[1720691376163,2.76099553,3140.9,3139.1,0.197]
[1720691376164,1.66877953,3139.9,3139.1,2.167]
[1720691376369,5.70232504,3141.0,3139.1,2.167]
[1720691376510,1.6684556,3139.8,3139.1,2.167]
[1720691376716,1.6684556,3139.9,3139.2,0.2167]
[1720691377056,1.6684556,3140.0,3139.2,0.2167]
[1720691377524,1.6684556,3140.0,3139.3,0.06369396]
[1720691378813,1.6684556,3140.1,3139.5,1.97]
[1720691379015,1.6684556,3140.4,3139.9,1.97]
[1720691379455,1.6684556,3140.7,3140.3,1.97]
[1720691379655,1.66697616,3141.1,3140.3,1.97]
[1720691379840,1.66697616,3141.2,3140.3,1.97]
[1720691380028,1.66697616,3141.2,3140.4,0.197]
[1720691380458,1.66697616,3141.4,3140.4,0.197]
[1720691380954,1.66697616,3141.3,3140.4,0.197]
[1720691381160,1.66697616,3141.3,3140.4,0.26067044]
[1720691381323,1.66697616,3141.5,3140.7,1.97]
[1720691381525,1.66697616,3141.5,3140.8,0.06366825]
[1720691381715,1.66697616,3141.6,3140.7,2.167]
[1720691381922,1.66697616,3141.7,3140.8,0.06366352]
[1720691382143,1.66697616,3141.7,3140.7,2.167]
[1720691382144,1.66697616,3141.7,3140.7,0.197]
[1720691382359,1.66697616,3141.6,3140.6,1.97]
[1720691382862,2.2519,3142.4,3140.6,1.97]
[1720691383155,1.66395437,3141.6,3140.6,1.97]
[1720691383327,1.66395437,3141.8,3140.7,0.06366332]
[1720691384053,1.66395437,3141.7,3140.6,1.97]
[1720691384240,1.66395437,3141.7,3140.7,0.197]
[1720691385452,1.66395437,3141.8,3140.7,0.197]
[1720691385823,1.66395437,3141.9,3140.7,0.197]
[1720691386331,1.66240986,3141.9,3140.8,0.06366333]
[1720691386532,1.66240986,3142.0,3140.8,0.06366333]
[1720691386863,1.66240986,3142.0,3141.0,1.97]
[1720691387161,1.66240986,3142.0,3141.0,2.03366113]
[1720691387333,1.66240986,3142.2,3141.0,2.03366113]
[1720691387814,1.66240986,3142.3,3141.0,2.03366113]
[1720691388756,4.24733974,3142.4,3141.0,2.03366113]
[1720691388961,0.42473397,3142.3,3141.1,0.44099611]
[1720691389163,0.42473397,3142.3,3141.2,0.0636584]
[1720691390345,1.66055517,3142.7,3141.2,0.0636584]
[1720691391255,1.66055517,3142.7,3141.1,0.44099611]
[1720691391616,1.66055517,3142.7,3141.1,0.50465045]
[1720691391943,1.66055517,3142.3,3140.4,2.3061]
[1720691392144,1.66055517,3142.0,3140.4,2.3061]
[1720691392535,1.97,3142.4,3140.4,2.3061]
[1720691392536,1.66055517,3141.9,3140.4,2.3061]
[1720691392734,1.66055517,3142.1,3140.4,2.3061]
[1720691392958,0.16605552,3142.0,3140.5,0.42761]
[1720691393863,0.16605552,3142.0,3141.9,0.2]
[1720691394380,1.65989982,3142.2,3141.9,0.2]
[1720691394769,1.65989982,3142.0,3141.9,0.2]
[1720691395080,1.99187979,3142.2,3141.9,0.2]
[1720691395291,1.97,3142.0,3141.9,0.2]
[1720691395440,3.96187979,3142.0,3141.9,0.2]
[1720691395780,2.37721526,3142.0,3141.9,0.2]
[1720691397738,2.37721526,3142.0,3141.9,0.4]
[1720691398946,0.40721526,3141.9,3139.9,8.9075]
[1720691399259,1.66068262,3141.4,3140.0,1.13345]
[1720691399467,1.66068262,3141.4,3139.9,1.97]
[1720691399782,1.66080784,3141.4,3139.9,1.97]
[1720691400554,1.1069143,3141.9,3139.9,1.97]
[1720691400856,1.66069444,3141.8,3139.9,1.97]
[1720691401043,1.66069444,3141.8,3140.0,0.4397]
[1720691401044,1.66069444,3141.7,3140.0,0.4397]
[1720691402383,1.66064917,3141.7,3140.0,0.4397]
[1720691403277,0.23603935,3141.8,3140.0,0.4397]
[1720691403278,1.66064917,3141.6,3140.0,0.4397]
[1720691404094,1.66064917,3141.5,3140.0,0.4397]
[1720691404247,1.66064917,3141.5,3139.9,1.97]
[1720691404444,1.66064917,3141.3,3139.9,1.97]
[1720691405390,1.66064917,3141.3,3140.0,0.06368564]
[1720691405593,0.23603935,3141.8,3140.0,0.06368564]
[1720691405755,1.66143125,3141.7,3140.3,1.97]
[1720691405955,1.99451066,3141.7,3140.3,1.97]
[1720691406561,1.66143125,3141.3,3139.9,1.97]
[1720691406990,1.66143125,3141.2,3139.9,1.97]
[1720691407153,0.16614313,3141.1,3139.9,2.4097]
[1720691407470,1.82757438,3141.1,3139.9,0.4397]
[1720691409137,0.16614313,3141.1,3139.9,0.4397]
[1720691409263,1.662857,3141.0,3139.9,0.4397]
[1720691410356,1.662857,3140.7,3139.3,2.4044]
[1720691410556,1.662857,3140.5,3139.3,2.4044]
[1720691410802,1.662857,3140.5,3138.8,2.4044]
[1720691410803,1.662857,3140.2,3138.8,2.4044]
[1720691410964,1.662857,3140.1,3138.9,0.43744]
[1720691411476,1.662857,3140.0,3138.9,0.43744]
[1720691411861,1.662857,3139.8,3138.9,0.43744]
[1720691412070,1.662857,3139.8,3138.8,2.4044]
[1720691412266,7.44,3140.7,3139.1,1.97]
[1720691412589,1.66483678,3140.2,3139.1,1.97]
[1720691413211,1.66483678,3140.3,3139.1,1.97]
[1720691413409,1.66483678,3140.2,3139.2,2.3232]
[1720691413638,1.66483678,3140.5,3139.5,1.97]
[1720691414838,1.66483678,3140.5,3139.5,2.03369181]
[1720691415197,1.66483678,3140.5,3139.5,1.97]
[1720691415398,1.66483678,3140.4,3139.5,1.97]
[1720691415618,0.16648368,3140.3,3139.5,1.97]
[1720691415833,1.66666886,3140.4,3139.5,1.97]
[1720691416211,1.66668333,3140.4,3139.6,0.06369182]
[1720691416818,1.66668333,3140.4,3139.5,1.97]
[1720691419214,1.66681228,3140.4,3139.5,1.97]
[1720691419428,1.66681228,3140.5,3139.6,0.06368869]
[1720691419722,1.66681228,3140.6,3139.8,2.4073]
[1720691420098,1.66681228,3140.5,3140.3,0.2]
[1720691421010,2.3669,3141.5,3140.3,0.2]
[1720691421212,1.66669125,3140.5,3140.3,0.2]
[1720691422615,2.77411526,3141.5,3140.3,0.2]
[1720691422845,1.66697754,3140.5,3140.3,0.2]
[1720691423024,1.66697754,3140.4,3140.3,0.2]
[1720691423420,1.66714893,3140.4,3140.3,0.2]
[1720691423751,8.32162679,3141.4,3140.3,0.2]
[1720691423752,1.66714893,3140.5,3140.3,0.2]
[1720691424326,1.66714893,3140.5,3140.3,0.4]
[1720691424925,1.66714893,3140.6,3140.3,0.4]
[1720691425335,1.66714893,3140.7,3140.3,0.4]
[1720691425556,1.66714893,3140.6,3140.3,0.4]
[1720691426072,7.91441153,3141.4,3140.3,0.4]
[1720691426238,1.6671771,3140.6,3140.3,0.4]
[1720691426627,1.6671771,3140.5,3140.3,0.4]
[1720691427073,1.6671771,3140.6,3140.3,0.4]
[1720691427656,1.6671771,3140.5,3140.3,0.4]
[1720691428767,2.00061252,3140.6,3140.3,0.4]
[1720691429376,0.3330904,3141.4,3140.3,0.4]
[1720691429531,2.00120808,3140.6,3140.3,0.4]
[1720691430044,1.66766494,3140.4,3140.3,0.4]
[1720691431269,2.33466496,3140.9,3140.3,0.4]
[1720691431270,1.66766494,3140.5,3140.3,0.4]
[1720691431567,1.66766494,3140.6,3140.3,0.4]
[1720691431726,1.66766494,3140.6,3140.4,2.3861]
[1720691431925,1.66766494,3140.6,3140.5,0.47561]
[1720691432838,1.66806537,3140.6,3140.5,0.47561]
[1720691435353,4.3363434,3140.9,3140.5,0.47561]
[1720691435354,2.00167844,3140.8,3140.5,0.47561]
[1720691435557,1.66935379,3140.6,3140.5,0.47561]
[1720691435730,4.3363434,3140.9,3140.5,2.44561]
[1720691435731,1.66935379,3140.7,3140.5,2.44561]
[1720691436129,2.33466496,3140.9,3140.5,2.44561]
[1720691436443,2.33466496,3140.9,3140.5,2.50928057]
[1720691436757,2.33466496,3140.9,3140.6,0.48953806]
[1720691439472,2.33466496,3140.9,3140.3,0.4]
[1720691439623,2.00377538,3140.6,3140.3,0.4]
[1720691439826,4.6724029,3140.9,3140.3,0.4]
[1720691439827,2.00377538,3140.5,3140.3,0.4]
[1720691440027,2.00377538,3140.4,3140.3,0.4]
[1720691440970,2.33773794,3140.6,3140.3,0.4]
[1720691441265,2.57151173,3140.6,3140.3,0.4]
[1720691441564,2.33773794,3140.4,3140.3,0.4]
[1720691441953,0.23377379,3140.6,3140.3,0.4]
[1720691441954,2.99522674,3140.6,3140.3,0.4]
[1720691442128,2.76145295,3140.5,3140.3,0.4]
[1720691442328,3.06097562,3140.4,3140.3,0.4]
[1720691442576,0.70673793,3140.4,3140.3,0.4]
[1720691442725,0.74035459,3140.4,3140.3,0.4]
[1720691445675,4.05203975,3140.4,3140.3,0.4]
[1720691446385,0.74035459,3140.4,3140.3,0.4]
[1720691446534,0.33313933,3140.4,3140.3,0.4]
[1720691447638,2.66831337,3140.4,3140.3,0.4]
[1720691448081,0.33313933,3140.4,3140.3,0.4]
[1720691449762,2.66828233,3140.4,3140.3,0.4]
[1720691449965,0.33313933,3140.4,3140.3,0.4]
[1720691451066,3.64486639,3140.4,3140.3,0.4]
[1720691451300,3.63293739,3140.4,3140.3,0.4]
[1720691451506,3.63293739,3140.4,3138.3,6.9375]
[1720691451507,3.14912559,3140.4,3138.3,6.9375]
[1720691451797,1.6681426,3138.8,3138.3,0.69375]
[1720691451973,1.6681426,3138.8,3137.7,8.9075]
[1720691452160,1.6681426,3138.7,3137.7,8.9075]
[1720691452356,1.6681426,3138.8,3137.7,8.9075]
[1720691452786,10.750429,3139.9,3137.7,8.9075]
[1720691453098,1.66764355,3138.8,3137.7,1.97]
[1720691453277,1.66764355,3138.8,3137.8,0.43956]
[1720691454793,1.66764355,3138.6,3137.8,0.43956]
[1720691455010,1.66764355,3138.5,3137.6,2.4256]
[1720691455511,1.66764355,3138.6,3137.6,2.4256]
[1720691455679,2.00117226,3138.8,3137.6,2.4256]
[1720691455680,1.66764355,3138.5,3137.6,2.4256]
[1720691456081,1.66764355,3138.5,3137.3,1.97]
[1720691456281,0.86803196,3140.3,3137.1,6.9375]
[1720691456282,2.2829,3138.4,3137.1,6.9375]
[1720691456486,1.66608706,3138.1,3137.1,7.63125]
[1720691456794,1.66608706,3138.0,3137.1,0.69375]
[1720691456991,5.03819147,3138.9,3137.0,1.97]
[1720691456992,1.66608706,3138.2,3137.0,1.97]
[1720691457182,1.66608706,3138.4,3137.0,1.97]
[1720691457495,1.66608706,3138.5,3137.0,1.97]
[1720691457659,1.66608706,3138.5,3137.1,0.06373859]
[1720691457866,1.66608706,3138.8,3137.4,1.97]
[1720691458109,1.66608706,3138.8,3137.5,0.26072861]
[1720691458395,1.66608706,3138.9,3137.5,0.26072861]
[1720691459715,4.2553,3139.4,3137.9,2.4295]
[1720691459716,1.66259595,3139.1,3137.9,2.4295]
[1720691459862,1.66259595,3139.4,3138.0,0.06371746]
[1720691460063,1.66259595,3139.4,3138.1,0.24932175]
[1720691460298,1.66259595,3139.4,3138.2,0.06371747]
[1720691460486,1.66259595,3139.4,3138.1,0.24932175]
[1720691460695,1.66259595,3139.4,3138.1,0.31303921]
[1720691461010,1.66259595,3139.6,3138.2,1.97]
[1720691461172,1.66259595,3139.8,3138.3,0.29201324]
[1720691461520,1.66259595,3139.9,3138.4,2.4551]
[1720691461666,1.99511514,3140.1,3138.4,2.4551]
[1720691461667,1.66259595,3140.1,3138.6,1.97]
[1720691461870,0.1662596,3140.0,3138.7,0.197]
[1720691462307,1.82802283,3140.0,3138.7,0.197]
[1720691462488,0.1662596,3140.0,3138.7,0.197]
[1720691462896,1.66176323,3139.9,3138.7,0.197]
[1720691463167,1.66176323,3139.9,3138.4,2.4551]
[1720691463368,1.66176323,3139.8,3138.4,2.4551]
[1720691463826,1.66176323,3139.6,3138.4,2.4551]
[1720691464300,1.66176323,3139.5,3138.4,2.4551]
[1720691464482,0.1662596,3140.0,3138.4,2.4551]
[1720691464483,1.66176323,3139.6,3138.4,2.4551]
[1720691464802,1.82793955,3139.5,3138.4,2.4551]
[1720691465005,0.16617632,3139.5,3138.4,2.4551]
[1720691468391,1.66180689,3139.2,3137.9,2.3235]
[1720691468786,1.6615528,3139.3,3138.0,0.23235]
[1720691469098,1.82772912,3139.5,3138.0,0.29607321]
[1720691469282,1.6615528,3139.7,3138.1,1.97]
[1720691469699,1.6615528,3139.6,3138.1,1.97]
[1720691470367,1.6615528,3139.5,3138.1,1.97]
[1720691470618,1.66139528,3139.5,3138.1,1.97]
[1720691470814,1.66139528,3139.6,3138.2,0.220235]
[1720691471108,1.66139528,3139.7,3138.3,0.06371678]
[1720691471291,1.66139528,3139.9,3138.4,2.4917]
[1720691471617,3.96367434,3140.2,3138.5,0.06371004]
[1720691471618,0.71230142,3139.8,3138.5,0.06371004]
[1720691471776,0.71230142,3139.7,3138.5,0.06371004]
[1720691472127,1.66115917,3140.1,3138.6,0.31925132]
[1720691472277,0.71222012,3140.0,3138.6,0.31925132]
[1720691472470,0.71222012,3139.9,3138.6,0.31925132]
[1720691472672,0.71222012,3139.8,3138.6,0.31925132]
[1720691473009,2.30724443,3140.3,3138.9,1.97]
[1720691473191,0.71213807,3140.2,3139.0,2.72229802]
[1720691473399,0.71213807,3140.1,3139.0,2.72229802]
[1720691473712,1.66115917,3140.5,3139.0,2.6586]
[1720691473870,2.37329181,3140.4,3139.0,2.6586]
[1720691474070,0.71213264,3140.3,3139.0,2.6586]
[1720691474266,0.71213264,3140.3,3139.1,0.46286]
[1720691474267,0.94946182,3140.3,3139.1,0.46286]
[1720691474509,0.71213264,3140.2,3139.1,0.46286]
[1720691475208,0.71213264,3140.2,3139.9,0.2]
[1720691475520,0.71214208,3140.1,3139.9,0.2]
[1720691475817,0.71214208,3140.0,3139.9,0.2]
[1720691476017,0.71214208,3140.2,3139.9,0.2]
[1720691476521,0.26111796,3140.1,3139.9,0.2]
[1720691476702,0.71214208,3140.0,3139.9,0.2]
[1720691476908,1.6617083,3140.4,3139.9,0.2]
[1720691477128,1.99404996,3140.7,3139.9,0.2]
[1720691477129,0.71209881,3140.3,3139.9,0.2]
[1720691477289,0.71209881,3140.2,3139.9,0.2]
[1720691477488,0.71209881,3140.1,3139.9,0.2]
[1720691477721,0.71209881,3140.0,3139.9,0.2]
[1720691477922,0.71209881,3140.3,3139.9,0.2]
[1720691478093,0.23738071,3140.2,3139.9,0.2]
[1720691478289,0.71209881,3140.1,3139.9,0.2]
[1720691478926,0.71209584,3140.0,3139.9,0.2]
[1720691479423,0.71209584,3140.0,3139.9,0.4]
[1720691479638,1.66222885,3140.9,3139.9,2.8537]
[1720691479833,1.66222885,3141.3,3140.2,1.97]
[1720691480121,0.71174031,3141.2,3139.9,2.8537]
[1720691480437,1.66222885,3141.0,3139.9,2.8537]